Workbook

Sheet Deutsch
A1: Zielwert | B1: 100 | J1: Summe | K1: Check
A2: Untergrenze | B2: 43.3 | C2: 9.8 | D2: 15.1 | E2: 2.7 | F2: 2.8 | G2: 15.3 | H2: 0.27 | J2: =SUM(B2:H2) -> 89.27 | K2: =IF(J2>$B$1,"Keine Lösung, weil Summe der Untergrenzen größer als " & $B$1 & " ist.","") ->  | M2: =B2:H3 -> 43.3 | N2: 9.8 | O2: 15.1 | P2: 2.7 | Q2: 2.8 | R2: 15.3 | S2: 0.27
A3: Obergrenze | B3: 48.5 | C3: 13.5 | D3: 18.2 | E3: 5.8 | F3: 4.9 | G3: 17.4 | H3: 0.44 | J3: =SUM(B3:H3) -> 108.74 | K3: =IF(J3<$B$1,"Keine Lösung, weil Summe der Obergrenzen kleiner als " & $B$1 & " ist.","") ->  | M3: 48.5 | N3: 13.5 | O3: 18.2 | P3: 5.8 | Q3: 4.9 | R3: 17.4 | S3: 0.44
A4: Formellösungen: | M4: =M3:S3-M2:S2 -> 5.2 | N4: 3.7 | O4: 3.1 | P4: 3.1 | Q4: 2.1 | R4: 2.1 | S4: 0.17
B5: =sbRandTriang(MAX(B$2,$B$1-SUM($A5:A5)-SUM(C$3:$I$3)),MIN(MAX(MAX(B$2,$B$1-SUM($A5:A5)-SUM(C$3:$I$3)),B$2+($B$1-(SUM($A5:A5)+SUM(B$2:$I$2)))/(SUM(B$3:$I$3)-SUM(B$2:$I$2))*(B$3-B$2)),MIN(B$3,$B$1-SUM($A5:A5)-SUM(C$2:$I$2))),MIN(B$3,$B$1-SUM($A5:A5)-SUM(C$2:$I$2))) -> 46.85443396 | C5: =sbRandTriang(MAX(C$2,$B$1-SUM($A5:B5)-SUM(D$3:$I$3)),MIN(MAX(MAX(C$2,$B$1-SUM($A5:B5)-SUM(D$3:$I$3)),C$2+($B$1-(SUM($A5:B5)+SUM(C$2:$I$2)))/(SUM(C$3:$I$3)-SUM(C$2:$I$2))*(C$3-C$2)),MIN(C$3,$B$1-SUM($A5:B5)-SUM(D$2:$I$2))),MIN(C$3,$B$1-SUM($A5:B5)-SUM(D$2:$I$2))) -> 12.30082989 | D5: =sbRandTriang(MAX(D$2,$B$1-SUM($A5:C5)-SUM(E$3:$I$3)),MIN(MAX(MAX(D$2,$B$1-SUM($A5:C5)-SUM(E$3:$I$3)),D$2+($B$1-(SUM($A5:C5)+SUM(D$2:$I$2)))/(SUM(D$3:$I$3)-SUM(D$2:$I$2))*(D$3-D$2)),MIN(D$3,$B$1-SUM($A5:C5)-SUM(E$2:$I$2))),MIN(D$3,$B$1-SUM($A5:C5)-SUM(E$2:$I$2))) -> 16.37563831 | E5: =sbRandTriang(MAX(E$2,$B$1-SUM($A5:D5)-SUM(F$3:$I$3)),MIN(MAX(MAX(E$2,$B$1-SUM($A5:D5)-SUM(F$3:$I$3)),E$2+($B$1-(SUM($A5:D5)+SUM(E$2:$I$2)))/(SUM(E$3:$I$3)-SUM(E$2:$I$2))*(E$3-E$2)),MIN(E$3,$B$1-SUM($A5:D5)-SUM(F$2:$I$2))),MIN(E$3,$B$1-SUM($A5:D5)-SUM(F$2:$I$2))) -> 4.565888593 | F5: =sbRandTriang(MAX(F$2,$B$1-SUM($A5:E5)-SUM(G$3:$I$3)),MIN(MAX(MAX(F$2,$B$1-SUM($A5:E5)-SUM(G$3:$I$3)),F$2+($B$1-(SUM($A5:E5)+SUM(F$2:$I$2)))/(SUM(F$3:$I$3)-SUM(F$2:$I$2))*(F$3-F$2)),MIN(F$3,$B$1-SUM($A5:E5)-SUM(G$2:$I$2))),MIN(F$3,$B$1-SUM($A5:E5)-SUM(G$2:$I$2))) -> 3.951236271 | G5: =sbRandTriang(MAX(G$2,$B$1-SUM($A5:F5)-SUM(H$3:$I$3)),MIN(MAX(MAX(G$2,$B$1-SUM($A5:F5)-SUM(H$3:$I$3)),G$2+($B$1-(SUM($A5:F5)+SUM(G$2:$I$2)))/(SUM(G$3:$I$3)-SUM(G$2:$I$2))*(G$3-G$2)),MIN(G$3,$B$1-SUM($A5:F5)-SUM(H$2:$I$2))),MIN(G$3,$B$1-SUM($A5:F5)-SUM(H$2:$I$2))) -> 15.66241846 | H5: =sbRandTriang(MAX(H$2,$B$1-SUM($A5:G5)-SUM(I$3:$I$3)),MIN(MAX(MAX(H$2,$B$1-SUM($A5:G5)-SUM(I$3:$I$3)),H$2+($B$1-(SUM($A5:G5)+SUM(H$2:$I$2)))/(SUM(H$3:$I$3)-SUM(H$2:$I$2))*(H$3-H$2)),MIN(H$3,$B$1-SUM($A5:G5)-SUM(I$2:$I$2))),MIN(H$3,$B$1-SUM($A5:G5)-SUM(I$2:$I$2))) -> 0.2895545291 | J5: =SUM(B5:H5) -> 100 | L5: 1 | M5: =COUNTIF(B$5:B$1048576,"<=" & M$2+$L5*(M$3-M$2)/10) -> 0 | N5: 0 | O5: 0 | P5: 0 | Q5: 0 | R5: 0 | S5: 0
L6: 2 | M6: =COUNTIF(B$5:B$1048576,"<=" & M$2+$L6*(M$3-M$2)/10)-SUM(M$5:M5) -> 0 | N6: =COUNTIF(C$5:C$1048576,"<=" & N$2+$L6*(N$3-N$2)/10)-SUM(N$5:N5) -> 0 | O6: =COUNTIF(D$5:D$1048576,"<=" & O$2+$L6*(O$3-O$2)/10)-SUM(O$5:O5) -> 0 | P6: =COUNTIF(E$5:E$1048576,"<=" & P$2+$L6*(P$3-P$2)/10)-SUM(P$5:P5) -> 0 | Q6: =COUNTIF(F$5:F$1048576,"<=" & Q$2+$L6*(Q$3-Q$2)/10)-SUM(Q$5:Q5) -> 0 | R6: =COUNTIF(G$5:G$1048576,"<=" & R$2+$L6*(R$3-R$2)/10)-SUM(R$5:R5) -> 1 | S6: =COUNTIF(H$5:H$1048576,"<=" & S$2+$L6*(S$3-S$2)/10)-SUM(S$5:S5) -> 1
B7: Copy B5:J5 down and press button. | L7: 3 | M7: =COUNTIF(B$5:B$1048576,"<=" & M$2+$L7*(M$3-M$2)/10)-SUM(M$5:M6) -> 0 | N7: =COUNTIF(C$5:C$1048576,"<=" & N$2+$L7*(N$3-N$2)/10)-SUM(N$5:N6) -> 0 | O7: =COUNTIF(D$5:D$1048576,"<=" & O$2+$L7*(O$3-O$2)/10)-SUM(O$5:O6) -> 0 | P7: =COUNTIF(E$5:E$1048576,"<=" & P$2+$L7*(P$3-P$2)/10)-SUM(P$5:P6) -> 0 | Q7: =COUNTIF(F$5:F$1048576,"<=" & Q$2+$L7*(Q$3-Q$2)/10)-SUM(Q$5:Q6) -> 0 | R7: =COUNTIF(G$5:G$1048576,"<=" & R$2+$L7*(R$3-R$2)/10)-SUM(R$5:R6) -> 0 | S7: =COUNTIF(H$5:H$1048576,"<=" & S$2+$L7*(S$3-S$2)/10)-SUM(S$5:S6) -> 0
L8: 4 | M8: =COUNTIF(B$5:B$1048576,"<=" & M$2+$L8*(M$3-M$2)/10)-SUM(M$5:M7) -> 0 | N8: =COUNTIF(C$5:C$1048576,"<=" & N$2+$L8*(N$3-N$2)/10)-SUM(N$5:N7) -> 0 | O8: =COUNTIF(D$5:D$1048576,"<=" & O$2+$L8*(O$3-O$2)/10)-SUM(O$5:O7) -> 0 | P8: =COUNTIF(E$5:E$1048576,"<=" & P$2+$L8*(P$3-P$2)/10)-SUM(P$5:P7) -> 0 | Q8: =COUNTIF(F$5:F$1048576,"<=" & Q$2+$L8*(Q$3-Q$2)/10)-SUM(Q$5:Q7) -> 0 | R8: =COUNTIF(G$5:G$1048576,"<=" & R$2+$L8*(R$3-R$2)/10)-SUM(R$5:R7) -> 0 | S8: =COUNTIF(H$5:H$1048576,"<=" & S$2+$L8*(S$3-S$2)/10)-SUM(S$5:S7) -> 0
L9: 5 | M9: =COUNTIF(B$5:B$1048576,"<=" & M$2+$L9*(M$3-M$2)/10)-SUM(M$5:M8) -> 0 | N9: =COUNTIF(C$5:C$1048576,"<=" & N$2+$L9*(N$3-N$2)/10)-SUM(N$5:N8) -> 1 | O9: =COUNTIF(D$5:D$1048576,"<=" & O$2+$L9*(O$3-O$2)/10)-SUM(O$5:O8) -> 1 | P9: =COUNTIF(E$5:E$1048576,"<=" & P$2+$L9*(P$3-P$2)/10)-SUM(P$5:P8) -> 0 | Q9: =COUNTIF(F$5:F$1048576,"<=" & Q$2+$L9*(Q$3-Q$2)/10)-SUM(Q$5:Q8) -> 0 | R9: =COUNTIF(G$5:G$1048576,"<=" & R$2+$L9*(R$3-R$2)/10)-SUM(R$5:R8) -> 1 | S9: =COUNTIF(H$5:H$1048576,"<=" & S$2+$L9*(S$3-S$2)/10)-SUM(S$5:S8) -> 0
L10: 6 | M10: =COUNTIF(B$5:B$1048576,"<=" & M$2+$L10*(M$3-M$2)/10)-SUM(M$5:M9) -> 1 | N10: =COUNTIF(C$5:C$1048576,"<=" & N$2+$L10*(N$3-N$2)/10)-SUM(N$5:N9) -> 0 | O10: =COUNTIF(D$5:D$1048576,"<=" & O$2+$L10*(O$3-O$2)/10)-SUM(O$5:O9) -> 1 | P10: =COUNTIF(E$5:E$1048576,"<=" & P$2+$L10*(P$3-P$2)/10)-SUM(P$5:P9) -> 1 | Q10: =COUNTIF(F$5:F$1048576,"<=" & Q$2+$L10*(Q$3-Q$2)/10)-SUM(Q$5:Q9) -> 1 | R10: =COUNTIF(G$5:G$1048576,"<=" & R$2+$L10*(R$3-R$2)/10)-SUM(R$5:R9) -> 0 | S10: =COUNTIF(H$5:H$1048576,"<=" & S$2+$L10*(S$3-S$2)/10)-SUM(S$5:S9) -> 0
L11: 7 | M11: =COUNTIF(B$5:B$1048576,"<=" & M$2+$L11*(M$3-M$2)/10)-SUM(M$5:M10) -> 1 | N11: =COUNTIF(C$5:C$1048576,"<=" & N$2+$L11*(N$3-N$2)/10)-SUM(N$5:N10) -> 1 | O11: =COUNTIF(D$5:D$1048576,"<=" & O$2+$L11*(O$3-O$2)/10)-SUM(O$5:O10) -> 0 | P11: =COUNTIF(E$5:E$1048576,"<=" & P$2+$L11*(P$3-P$2)/10)-SUM(P$5:P10) -> 1 | Q11: =COUNTIF(F$5:F$1048576,"<=" & Q$2+$L11*(Q$3-Q$2)/10)-SUM(Q$5:Q10) -> 0 | R11: =COUNTIF(G$5:G$1048576,"<=" & R$2+$L11*(R$3-R$2)/10)-SUM(R$5:R10) -> 0 | S11: =COUNTIF(H$5:H$1048576,"<=" & S$2+$L11*(S$3-S$2)/10)-SUM(S$5:S10) -> 0
L12: 8 | M12: =COUNTIF(B$5:B$1048576,"<=" & M$2+$L12*(M$3-M$2)/10)-SUM(M$5:M11) -> 0 | N12: =COUNTIF(C$5:C$1048576,"<=" & N$2+$L12*(N$3-N$2)/10)-SUM(N$5:N11) -> 0 | O12: =COUNTIF(D$5:D$1048576,"<=" & O$2+$L12*(O$3-O$2)/10)-SUM(O$5:O11) -> 0 | P12: =COUNTIF(E$5:E$1048576,"<=" & P$2+$L12*(P$3-P$2)/10)-SUM(P$5:P11) -> 0 | Q12: =COUNTIF(F$5:F$1048576,"<=" & Q$2+$L12*(Q$3-Q$2)/10)-SUM(Q$5:Q11) -> 0 | R12: =COUNTIF(G$5:G$1048576,"<=" & R$2+$L12*(R$3-R$2)/10)-SUM(R$5:R11) -> 0 | S12: =COUNTIF(H$5:H$1048576,"<=" & S$2+$L12*(S$3-S$2)/10)-SUM(S$5:S11) -> 0
L13: 9 | M13: =COUNTIF(B$5:B$1048576,"<=" & M$2+$L13*(M$3-M$2)/10)-SUM(M$5:M12) -> 0 | N13: =COUNTIF(C$5:C$1048576,"<=" & N$2+$L13*(N$3-N$2)/10)-SUM(N$5:N12) -> 0 | O13: =COUNTIF(D$5:D$1048576,"<=" & O$2+$L13*(O$3-O$2)/10)-SUM(O$5:O12) -> 0 | P13: =COUNTIF(E$5:E$1048576,"<=" & P$2+$L13*(P$3-P$2)/10)-SUM(P$5:P12) -> 0 | Q13: =COUNTIF(F$5:F$1048576,"<=" & Q$2+$L13*(Q$3-Q$2)/10)-SUM(Q$5:Q12) -> 1 | R13: =COUNTIF(G$5:G$1048576,"<=" & R$2+$L13*(R$3-R$2)/10)-SUM(R$5:R12) -> 0 | S13: =COUNTIF(H$5:H$1048576,"<=" & S$2+$L13*(S$3-S$2)/10)-SUM(S$5:S12) -> 0
L14: 10 | M14: =COUNTIF(B$5:B$1048576,"<=" & M$2+$L14*(M$3-M$2)/10)-SUM(M$5:M13) -> 0 | N14: =COUNTIF(C$5:C$1048576,"<=" & N$2+$L14*(N$3-N$2)/10)-SUM(N$5:N13) -> 0 | O14: =COUNTIF(D$5:D$1048576,"<=" & O$2+$L14*(O$3-O$2)/10)-SUM(O$5:O13) -> 0 | P14: =COUNTIF(E$5:E$1048576,"<=" & P$2+$L14*(P$3-P$2)/10)-SUM(P$5:P13) -> 0 | Q14: =COUNTIF(F$5:F$1048576,"<=" & Q$2+$L14*(Q$3-Q$2)/10)-SUM(Q$5:Q13) -> 0 | R14: =COUNTIF(G$5:G$1048576,"<=" & R$2+$L14*(R$3-R$2)/10)-SUM(R$5:R13) -> 0 | S14: =COUNTIF(H$5:H$1048576,"<=" & S$2+$L14*(S$3-S$2)/10)-SUM(S$5:S13) -> 1
M16: 0.27 | N16: 2.8 | O16: 15.3 | P16: 43.3 | Q16: 15.1 | R16: 9.8 | S16: 2.7
M17: 0.44 | N17: 4.9 | O17: 17.4 | P17: 48.5 | Q17: 18.2 | R17: 13.5 | S17: 5.8
L18: Original | M18: =M17-M16 -> 0.17 | N18: =N17-N16 -> 2.1 | O18: 2.1 | P18: 5.2 | Q18: 3.1 | R18: 3.7 | S18: 3.1
L19: 1 | M19: 173 | N19: 184 | O19: 185 | P19: 185 | Q19: 144 | R19: 118 | S19: 150
L20: 2 | M20: 556 | N20: 509 | O20: 580 | P20: 525 | Q20: 455 | R20: 397 | S20: 420
L21: 3 | M21: 907 | N21: 888 | O21: 939 | P21: 887 | Q21: 785 | R21: 699 | S21: 689
L22: 4 | M22: 1231 | N22: 1292 | O22: 1240 | P22: 1237 | Q22: 1152 | R22: 867 | S22: 947
L23: 5 | M23: 1655 | N23: 1586 | O23: 1643 | P23: 1615 | Q23: 1547 | R23: 1086 | S23: 1216
L24: 6 | M24: 1893 | N24: 1902 | O24: 1876 | P24: 1842 | Q24: 1705 | R24: 1357 | S24: 1415
L25: 7 | M25: 1589 | N25: 1577 | O25: 1539 | P25: 1622 | Q25: 1683 | R25: 1531 | S25: 1527
L26: 8 | M26: 1104 | N26: 1173 | O26: 1084 | P26: 1141 | Q26: 1363 | R26: 1680 | S26: 1539
L27: 9 | M27: 695 | N27: 676 | O27: 680 | P27: 694 | Q27: 865 | R27: 1495 | S27: 1389
L28: 10 | M28: 197 | N28: 213 | O28: 234 | P28: 252 | Q28: 301 | R28: 770 | S28: 708
M30: 0.27 | N30: 15.3 | O30: 2.8 | P30: 2.7 | Q30: 15.1 | R30: 9.8 | S30: 43.3
M31: 0.44 | N31: 17.4 | O31: 4.9 | P31: 5.8 | Q31: 18.2 | R31: 13.5 | S31: 48.5
L32: Ascending | M32: 0.17 | N32: 2.1 | O32: 2.1 | P32: 3.1 | Q32: 3.1 | R32: 3.7 | S32: 5.2
L33: 1 | M33: 161 | N33: 179 | O33: 186 | P33: 189 | Q33: 176 | R33: 110 | S33: 35
L34: 2 | M34: 535 | N34: 527 | O34: 520 | P34: 541 | Q34: 509 | R34: 397 | S34: 146
L35: 3 | M35: 915 | N35: 887 | O35: 893 | P35: 875 | Q35: 912 | R35: 697 | S35: 405
L36: 4 | M36: 1206 | N36: 1290 | O36: 1234 | P36: 1213 | Q36: 1217 | R36: 1090 | S36: 842
L37: 5 | M37: 1706 | N37: 1649 | O37: 1691 | P37: 1671 | Q37: 1608 | R37: 1435 | S37: 1360
L38: 6 | M38: 1898 | N38: 1933 | O38: 1849 | P38: 1852 | Q38: 1814 | R38: 1732 | S38: 1882
L39: 7 | M39: 1554 | N39: 1547 | O39: 1629 | P39: 1598 | Q39: 1558 | R39: 1748 | S39: 2010
L40: 8 | M40: 1141 | N40: 1114 | O40: 1130 | P40: 1171 | Q40: 1247 | R40: 1500 | S40: 1814
L41: 9 | M41: 655 | N41: 654 | O41: 637 | P41: 690 | Q41: 712 | R41: 937 | S41: 1121
L42: 10 | M42: 229 | N42: 220 | O42: 231 | P42: 200 | Q42: 247 | R42: 354 | S42: 385
M44: 43.3 | N44: 9.8 | O44: 15.1 | P44: 2.7 | Q44: 2.8 | R44: 15.3 | S44: 0.27
M45: 48.5 | N45: 13.5 | O45: 18.2 | P45: 5.8 | Q45: 4.9 | R45: 17.4 | S45: 0.44
L46: Descending | M46: 5.2 | N46: 3.7 | O46: 3.1 | P46: 3.1 | Q46: 2.1 | R46: 2.1 | S46: 0.17
L47: 1 | M47: 171 | N47: 190 | O47: 168 | P47: 137 | Q47: 280 | R47: 371 | S47: 264
L48: 2 | M48: 535 | N48: 539 | O48: 526 | P48: 441 | Q48: 601 | R48: 604 | S48: 643
L49: 3 | M49: 841 | N49: 907 | O49: 856 | P49: 728 | Q49: 731 | R49: 683 | S49: 920
L50: 4 | M50: 1291 | N50: 1230 | O50: 1259 | P50: 1028 | Q50: 777 | R50: 785 | S50: 1136
L51: 5 | M51: 1671 | N51: 1603 | O51: 1519 | P51: 1263 | Q51: 945 | R51: 855 | S51: 1301
L52: 6 | M52: 1843 | N52: 1782 | O52: 1744 | P52: 1442 | Q52: 1079 | R52: 977 | S52: 1411
L53: 7 | M53: 1638 | N53: 1582 | O53: 1551 | P53: 1523 | Q53: 1331 | R53: 1214 | S53: 1375
L54: 8 | M54: 1114 | N54: 1196 | O54: 1309 | P54: 1494 | Q54: 1513 | R54: 1374 | S54: 1302
L55: 9 | M55: 660 | N55: 733 | O55: 802 | P55: 1307 | Q55: 1584 | R55: 1560 | S55: 1080
L56: 10 | M56: 236 | N56: 238 | O56: 266 | P56: 637 | Q56: 1159 | R56: 1577 | S56: 568
B10004: =sbRandTriang(MAX(B$2,$B$1-SUM($A10004:A10004)-SUM(C$3:$I$3)),MIN(MAX(MAX(B$2,$B$1-SUM($A10004:A10004)-SUM(C$3:$I$3)),B$2+($B$1-(SUM($A10004:A10004)+SUM(B$2:$I$2)))/(SUM(B$3:$I$3)-SUM(B$2:$I$2))*(B$3-B$2)),MIN(B$3,$B$1-SUM($A10004:A10004)-SUM(C$2:$I$2))),MIN(B$3,$B$1-SUM($A10004:A10004)-SUM(C$2:$I$2))) -> 46.1439372 | C10004: =sbRandTriang(MAX(C$2,$B$1-SUM($A10004:B10004)-SUM(D$3:$I$3)),MIN(MAX(MAX(C$2,$B$1-SUM($A10004:B10004)-SUM(D$3:$I$3)),C$2+($B$1-(SUM($A10004:B10004)+SUM(C$2:$I$2)))/(SUM(C$3:$I$3)-SUM(C$2:$I$2))*(C$3-C$2)),MIN(C$3,$B$1-SUM($A10004:B10004)-SUM(D$2:$I$2))),MIN(C$3,$B$1-SUM($A10004:B10004)-SUM(D$2:$I$2))) -> 11.35217392 | D10004: =sbRandTriang(MAX(D$2,$B$1-SUM($A10004:C10004)-SUM(E$3:$I$3)),MIN(MAX(MAX(D$2,$B$1-SUM($A10004:C10004)-SUM(E$3:$I$3)),D$2+($B$1-(SUM($A10004:C10004)+SUM(D$2:$I$2)))/(SUM(D$3:$I$3)-SUM(D$2:$I$2))*(D$3-D$2)),MIN(D$3,$B$1-SUM($A10004:C10004)-SUM(E$2:$I$2))),MIN(D$3,$B$1-SUM($A10004:C10004)-SUM(E$2:$I$2))) -> 16.69384478 | E10004: =sbRandTriang(MAX(E$2,$B$1-SUM($A10004:D10004)-SUM(F$3:$I$3)),MIN(MAX(MAX(E$2,$B$1-SUM($A10004:D10004)-SUM(F$3:$I$3)),E$2+($B$1-(SUM($A10004:D10004)+SUM(E$2:$I$2)))/(SUM(E$3:$I$3)-SUM(E$2:$I$2))*(E$3-E$2)),MIN(E$3,$B$1-SUM($A10004:D10004)-SUM(F$2:$I$2))),MIN(E$3,$B$1-SUM($A10004:D10004)-SUM(F$2:$I$2))) -> 4.415877032 | F10004: =sbRandTriang(MAX(F$2,$B$1-SUM($A10004:E10004)-SUM(G$3:$I$3)),MIN(MAX(MAX(F$2,$B$1-SUM($A10004:E10004)-SUM(G$3:$I$3)),F$2+($B$1-(SUM($A10004:E10004)+SUM(F$2:$I$2)))/(SUM(F$3:$I$3)-SUM(F$2:$I$2))*(F$3-F$2)),MIN(F$3,$B$1-SUM($A10004:E10004)-SUM(G$2:$I$2))),MIN(F$3,$B$1-SUM($A10004:E10004)-SUM(G$2:$I$2))) -> 4.644070936 | G10004: =sbRandTriang(MAX(G$2,$B$1-SUM($A10004:F10004)-SUM(H$3:$I$3)),MIN(MAX(MAX(G$2,$B$1-SUM($A10004:F10004)-SUM(H$3:$I$3)),G$2+($B$1-(SUM($A10004:F10004)+SUM(G$2:$I$2)))/(SUM(G$3:$I$3)-SUM(G$2:$I$2))*(G$3-G$2)),MIN(G$3,$B$1-SUM($A10004:F10004)-SUM(H$2:$I$2))),MIN(G$3,$B$1-SUM($A10004:F10004)-SUM(H$2:$I$2))) -> 16.31903382 | H10004: =sbRandTriang(MAX(H$2,$B$1-SUM($A10004:G10004)-SUM(I$3:$I$3)),MIN(MAX(MAX(H$2,$B$1-SUM($A10004:G10004)-SUM(I$3:$I$3)),H$2+($B$1-(SUM($A10004:G10004)+SUM(H$2:$I$2)))/(SUM(H$3:$I$3)-SUM(H$2:$I$2))*(H$3-H$2)),MIN(H$3,$B$1-SUM($A10004:G10004)-SUM(I$2:$I$2))),MIN(H$3,$B$1-SUM($A10004:G10004)-SUM(I$2:$I$2))) -> 0.4310623163 | J10004: =SUM(B10004:H10004) -> 100

Sheet English
A1: Target | B1: 100 | J1: Sum | K1: Check
A2: Lower Border | B2: 0.27 | C2: 2.8 | D2: 15.3 | E2: 43.3 | F2: 15.1 | G2: 9.8 | H2: 2.7 | J2: =SUM(B2:H2) -> 89.27 | K2: =IF(J2>$B$1,"No solution because sum of lower borders exceed " & $B$1 & ".","") -> 
A3: Upper Border | B3: 0.44 | C3: 4.9 | D3: 17.4 | E3: 48.5 | F3: 18.2 | G3: 13.5 | H3: 5.8 | J3: =SUM(B3:H3) -> 108.74 | K3: =IF(J3<$B$1,"No solution because sum of upper borders is less than " & $B$1 & ".","") -> 
A4: Formula Solutions:
B5: =MAX(B$2,$B$1-SUM($A5:A5)-SUM(C$3:$I$3))+RAND()*(MIN(B$3,$B$1-SUM($A5:A5)-SUM(C$2:$I$2))-MAX(B$2,$B$1-SUM($A5:A5)-SUM(C$3:$I$3))) -> 0.3955934038 | C5: =MAX(C$2,$B$1-SUM($A5:B5)-SUM(D$3:$I$3))+RAND()*(MIN(C$3,$B$1-SUM($A5:B5)-SUM(D$2:$I$2))-MAX(C$2,$B$1-SUM($A5:B5)-SUM(D$3:$I$3))) -> 4.248600676 | D5: =MAX(D$2,$B$1-SUM($A5:C5)-SUM(E$3:$I$3))+RAND()*(MIN(D$3,$B$1-SUM($A5:C5)-SUM(E$2:$I$2))-MAX(D$2,$B$1-SUM($A5:C5)-SUM(E$3:$I$3))) -> 16.91420477 | E5: =MAX(E$2,$B$1-SUM($A5:D5)-SUM(F$3:$I$3))+RAND()*(MIN(E$3,$B$1-SUM($A5:D5)-SUM(F$2:$I$2))-MAX(E$2,$B$1-SUM($A5:D5)-SUM(F$3:$I$3))) -> 46.34499968 | F5: =MAX(F$2,$B$1-SUM($A5:E5)-SUM(G$3:$I$3))+RAND()*(MIN(F$3,$B$1-SUM($A5:E5)-SUM(G$2:$I$2))-MAX(F$2,$B$1-SUM($A5:E5)-SUM(G$3:$I$3))) -> 15.14039556 | G5: =MAX(G$2,$B$1-SUM($A5:F5)-SUM(H$3:$I$3))+RAND()*(MIN(G$3,$B$1-SUM($A5:F5)-SUM(H$2:$I$2))-MAX(G$2,$B$1-SUM($A5:F5)-SUM(H$3:$I$3))) -> 11.95640669 | H5: =MAX(H$2,$B$1-SUM($A5:G5)-SUM(I$3:$I$3))+RAND()*(MIN(H$3,$B$1-SUM($A5:G5)-SUM(I$2:$I$2))-MAX(H$2,$B$1-SUM($A5:G5)-SUM(I$3:$I$3))) -> 4.999799222 | J5: =SUM(B5:H5) -> 100
B6: =MAX(B$2,$B$1-SUM($A6:A6)-SUM(C$3:$I$3))+RAND()*(MIN(B$3,$B$1-SUM($A6:A6)-SUM(C$2:$I$2))-MAX(B$2,$B$1-SUM($A6:A6)-SUM(C$3:$I$3))) -> 0.3241781519 | C6: =MAX(C$2,$B$1-SUM($A6:B6)-SUM(D$3:$I$3))+RAND()*(MIN(C$3,$B$1-SUM($A6:B6)-SUM(D$2:$I$2))-MAX(C$2,$B$1-SUM($A6:B6)-SUM(D$3:$I$3))) -> 3.491992074 | D6: =MAX(D$2,$B$1-SUM($A6:C6)-SUM(E$3:$I$3))+RAND()*(MIN(D$3,$B$1-SUM($A6:C6)-SUM(E$2:$I$2))-MAX(D$2,$B$1-SUM($A6:C6)-SUM(E$3:$I$3))) -> 17.14819258 | E6: =MAX(E$2,$B$1-SUM($A6:D6)-SUM(F$3:$I$3))+RAND()*(MIN(E$3,$B$1-SUM($A6:D6)-SUM(F$2:$I$2))-MAX(E$2,$B$1-SUM($A6:D6)-SUM(F$3:$I$3))) -> 45.70965993 | F6: =MAX(F$2,$B$1-SUM($A6:E6)-SUM(G$3:$I$3))+RAND()*(MIN(F$3,$B$1-SUM($A6:E6)-SUM(G$2:$I$2))-MAX(F$2,$B$1-SUM($A6:E6)-SUM(G$3:$I$3))) -> 16.13598505 | G6: =MAX(G$2,$B$1-SUM($A6:F6)-SUM(H$3:$I$3))+RAND()*(MIN(G$3,$B$1-SUM($A6:F6)-SUM(H$2:$I$2))-MAX(G$2,$B$1-SUM($A6:F6)-SUM(H$3:$I$3))) -> 12.508445 | H6: =MAX(H$2,$B$1-SUM($A6:G6)-SUM(I$3:$I$3))+RAND()*(MIN(H$3,$B$1-SUM($A6:G6)-SUM(I$2:$I$2))-MAX(H$2,$B$1-SUM($A6:G6)-SUM(I$3:$I$3))) -> 4.681547213 | J6: 100
B7: =MAX(B$2,$B$1-SUM($A7:A7)-SUM(C$3:$I$3))+RAND()*(MIN(B$3,$B$1-SUM($A7:A7)-SUM(C$2:$I$2))-MAX(B$2,$B$1-SUM($A7:A7)-SUM(C$3:$I$3))) -> 0.4246200534 | C7: =MAX(C$2,$B$1-SUM($A7:B7)-SUM(D$3:$I$3))+RAND()*(MIN(C$3,$B$1-SUM($A7:B7)-SUM(D$2:$I$2))-MAX(C$2,$B$1-SUM($A7:B7)-SUM(D$3:$I$3))) -> 4.622808044 | D7: =MAX(D$2,$B$1-SUM($A7:C7)-SUM(E$3:$I$3))+RAND()*(MIN(D$3,$B$1-SUM($A7:C7)-SUM(E$2:$I$2))-MAX(D$2,$B$1-SUM($A7:C7)-SUM(E$3:$I$3))) -> 16.72457594 | E7: =MAX(E$2,$B$1-SUM($A7:D7)-SUM(F$3:$I$3))+RAND()*(MIN(E$3,$B$1-SUM($A7:D7)-SUM(F$2:$I$2))-MAX(E$2,$B$1-SUM($A7:D7)-SUM(F$3:$I$3))) -> 43.54882208 | F7: =MAX(F$2,$B$1-SUM($A7:E7)-SUM(G$3:$I$3))+RAND()*(MIN(F$3,$B$1-SUM($A7:E7)-SUM(G$2:$I$2))-MAX(F$2,$B$1-SUM($A7:E7)-SUM(G$3:$I$3))) -> 18.10337802 | G7: =MAX(G$2,$B$1-SUM($A7:F7)-SUM(H$3:$I$3))+RAND()*(MIN(G$3,$B$1-SUM($A7:F7)-SUM(H$2:$I$2))-MAX(G$2,$B$1-SUM($A7:F7)-SUM(H$3:$I$3))) -> 10.87927218 | H7: =MAX(H$2,$B$1-SUM($A7:G7)-SUM(I$3:$I$3))+RAND()*(MIN(H$3,$B$1-SUM($A7:G7)-SUM(I$2:$I$2))-MAX(H$2,$B$1-SUM($A7:G7)-SUM(I$3:$I$3))) -> 5.696523681 | J7: 100
B8: =MAX(B$2,$B$1-SUM($A8:A8)-SUM(C$3:$I$3))+RAND()*(MIN(B$3,$B$1-SUM($A8:A8)-SUM(C$2:$I$2))-MAX(B$2,$B$1-SUM($A8:A8)-SUM(C$3:$I$3))) -> 0.4028803114 | C8: =MAX(C$2,$B$1-SUM($A8:B8)-SUM(D$3:$I$3))+RAND()*(MIN(C$3,$B$1-SUM($A8:B8)-SUM(D$2:$I$2))-MAX(C$2,$B$1-SUM($A8:B8)-SUM(D$3:$I$3))) -> 2.874023082 | D8: =MAX(D$2,$B$1-SUM($A8:C8)-SUM(E$3:$I$3))+RAND()*(MIN(D$3,$B$1-SUM($A8:C8)-SUM(E$2:$I$2))-MAX(D$2,$B$1-SUM($A8:C8)-SUM(E$3:$I$3))) -> 16.89104704 | E8: =MAX(E$2,$B$1-SUM($A8:D8)-SUM(F$3:$I$3))+RAND()*(MIN(E$3,$B$1-SUM($A8:D8)-SUM(F$2:$I$2))-MAX(E$2,$B$1-SUM($A8:D8)-SUM(F$3:$I$3))) -> 48.362283 | F8: =MAX(F$2,$B$1-SUM($A8:E8)-SUM(G$3:$I$3))+RAND()*(MIN(F$3,$B$1-SUM($A8:E8)-SUM(G$2:$I$2))-MAX(F$2,$B$1-SUM($A8:E8)-SUM(G$3:$I$3))) -> 17.13652065 | G8: =MAX(G$2,$B$1-SUM($A8:F8)-SUM(H$3:$I$3))+RAND()*(MIN(G$3,$B$1-SUM($A8:F8)-SUM(H$2:$I$2))-MAX(G$2,$B$1-SUM($A8:F8)-SUM(H$3:$I$3))) -> 10.94401738 | H8: =MAX(H$2,$B$1-SUM($A8:G8)-SUM(I$3:$I$3))+RAND()*(MIN(H$3,$B$1-SUM($A8:G8)-SUM(I$2:$I$2))-MAX(H$2,$B$1-SUM($A8:G8)-SUM(I$3:$I$3))) -> 3.389228538 | J8: 100
B9: =MAX(B$2,$B$1-SUM($A9:A9)-SUM(C$3:$I$3))+RAND()*(MIN(B$3,$B$1-SUM($A9:A9)-SUM(C$2:$I$2))-MAX(B$2,$B$1-SUM($A9:A9)-SUM(C$3:$I$3))) -> 0.4111679 | C9: =MAX(C$2,$B$1-SUM($A9:B9)-SUM(D$3:$I$3))+RAND()*(MIN(C$3,$B$1-SUM($A9:B9)-SUM(D$2:$I$2))-MAX(C$2,$B$1-SUM($A9:B9)-SUM(D$3:$I$3))) -> 4.551717477 | D9: =MAX(D$2,$B$1-SUM($A9:C9)-SUM(E$3:$I$3))+RAND()*(MIN(D$3,$B$1-SUM($A9:C9)-SUM(E$2:$I$2))-MAX(D$2,$B$1-SUM($A9:C9)-SUM(E$3:$I$3))) -> 15.43185491 | E9: =MAX(E$2,$B$1-SUM($A9:D9)-SUM(F$3:$I$3))+RAND()*(MIN(E$3,$B$1-SUM($A9:D9)-SUM(F$2:$I$2))-MAX(E$2,$B$1-SUM($A9:D9)-SUM(F$3:$I$3))) -> 47.26478535 | F9: =MAX(F$2,$B$1-SUM($A9:E9)-SUM(G$3:$I$3))+RAND()*(MIN(F$3,$B$1-SUM($A9:E9)-SUM(G$2:$I$2))-MAX(F$2,$B$1-SUM($A9:E9)-SUM(G$3:$I$3))) -> 16.10224954 | G9: =MAX(G$2,$B$1-SUM($A9:F9)-SUM(H$3:$I$3))+RAND()*(MIN(G$3,$B$1-SUM($A9:F9)-SUM(H$2:$I$2))-MAX(G$2,$B$1-SUM($A9:F9)-SUM(H$3:$I$3))) -> 11.39945763 | H9: =MAX(H$2,$B$1-SUM($A9:G9)-SUM(I$3:$I$3))+RAND()*(MIN(H$3,$B$1-SUM($A9:G9)-SUM(I$2:$I$2))-MAX(H$2,$B$1-SUM($A9:G9)-SUM(I$3:$I$3))) -> 4.838767189 | J9: 100
B10: =MAX(B$2,$B$1-SUM($A10:A10)-SUM(C$3:$I$3))+RAND()*(MIN(B$3,$B$1-SUM($A10:A10)-SUM(C$2:$I$2))-MAX(B$2,$B$1-SUM($A10:A10)-SUM(C$3:$I$3))) -> 0.3197932208 | C10: =MAX(C$2,$B$1-SUM($A10:B10)-SUM(D$3:$I$3))+RAND()*(MIN(C$3,$B$1-SUM($A10:B10)-SUM(D$2:$I$2))-MAX(C$2,$B$1-SUM($A10:B10)-SUM(D$3:$I$3))) -> 4.865966837 | D10: =MAX(D$2,$B$1-SUM($A10:C10)-SUM(E$3:$I$3))+RAND()*(MIN(D$3,$B$1-SUM($A10:C10)-SUM(E$2:$I$2))-MAX(D$2,$B$1-SUM($A10:C10)-SUM(E$3:$I$3))) -> 16.95579577 | E10: =MAX(E$2,$B$1-SUM($A10:D10)-SUM(F$3:$I$3))+RAND()*(MIN(E$3,$B$1-SUM($A10:D10)-SUM(F$2:$I$2))-MAX(E$2,$B$1-SUM($A10:D10)-SUM(F$3:$I$3))) -> 43.34684675 | F10: =MAX(F$2,$B$1-SUM($A10:E10)-SUM(G$3:$I$3))+RAND()*(MIN(F$3,$B$1-SUM($A10:E10)-SUM(G$2:$I$2))-MAX(F$2,$B$1-SUM($A10:E10)-SUM(G$3:$I$3))) -> 17.9732285 | G10: =MAX(G$2,$B$1-SUM($A10:F10)-SUM(H$3:$I$3))+RAND()*(MIN(G$3,$B$1-SUM($A10:F10)-SUM(H$2:$I$2))-MAX(G$2,$B$1-SUM($A10:F10)-SUM(H$3:$I$3))) -> 13.01946119 | H10: =MAX(H$2,$B$1-SUM($A10:G10)-SUM(I$3:$I$3))+RAND()*(MIN(H$3,$B$1-SUM($A10:G10)-SUM(I$2:$I$2))-MAX(H$2,$B$1-SUM($A10:G10)-SUM(I$3:$I$3))) -> 3.518907738 | J10: 100
B11: =MAX(B$2,$B$1-SUM($A11:A11)-SUM(C$3:$I$3))+RAND()*(MIN(B$3,$B$1-SUM($A11:A11)-SUM(C$2:$I$2))-MAX(B$2,$B$1-SUM($A11:A11)-SUM(C$3:$I$3))) -> 0.3110217966 | C11: =MAX(C$2,$B$1-SUM($A11:B11)-SUM(D$3:$I$3))+RAND()*(MIN(C$3,$B$1-SUM($A11:B11)-SUM(D$2:$I$2))-MAX(C$2,$B$1-SUM($A11:B11)-SUM(D$3:$I$3))) -> 3.217414157 | D11: =MAX(D$2,$B$1-SUM($A11:C11)-SUM(E$3:$I$3))+RAND()*(MIN(D$3,$B$1-SUM($A11:C11)-SUM(E$2:$I$2))-MAX(D$2,$B$1-SUM($A11:C11)-SUM(E$3:$I$3))) -> 15.7153591 | E11: =MAX(E$2,$B$1-SUM($A11:D11)-SUM(F$3:$I$3))+RAND()*(MIN(E$3,$B$1-SUM($A11:D11)-SUM(F$2:$I$2))-MAX(E$2,$B$1-SUM($A11:D11)-SUM(F$3:$I$3))) -> 47.75437137 | F11: =MAX(F$2,$B$1-SUM($A11:E11)-SUM(G$3:$I$3))+RAND()*(MIN(F$3,$B$1-SUM($A11:E11)-SUM(G$2:$I$2))-MAX(F$2,$B$1-SUM($A11:E11)-SUM(G$3:$I$3))) -> 15.81532099 | G11: =MAX(G$2,$B$1-SUM($A11:F11)-SUM(H$3:$I$3))+RAND()*(MIN(G$3,$B$1-SUM($A11:F11)-SUM(H$2:$I$2))-MAX(G$2,$B$1-SUM($A11:F11)-SUM(H$3:$I$3))) -> 11.89549773 | H11: =MAX(H$2,$B$1-SUM($A11:G11)-SUM(I$3:$I$3))+RAND()*(MIN(H$3,$B$1-SUM($A11:G11)-SUM(I$2:$I$2))-MAX(H$2,$B$1-SUM($A11:G11)-SUM(I$3:$I$3))) -> 5.291014869 | J11: 100
B12: =MAX(B$2,$B$1-SUM($A12:A12)-SUM(C$3:$I$3))+RAND()*(MIN(B$3,$B$1-SUM($A12:A12)-SUM(C$2:$I$2))-MAX(B$2,$B$1-SUM($A12:A12)-SUM(C$3:$I$3))) -> 0.3322188969 | C12: =MAX(C$2,$B$1-SUM($A12:B12)-SUM(D$3:$I$3))+RAND()*(MIN(C$3,$B$1-SUM($A12:B12)-SUM(D$2:$I$2))-MAX(C$2,$B$1-SUM($A12:B12)-SUM(D$3:$I$3))) -> 4.394834168 | D12: =MAX(D$2,$B$1-SUM($A12:C12)-SUM(E$3:$I$3))+RAND()*(MIN(D$3,$B$1-SUM($A12:C12)-SUM(E$2:$I$2))-MAX(D$2,$B$1-SUM($A12:C12)-SUM(E$3:$I$3))) -> 17.33544332 | E12: =MAX(E$2,$B$1-SUM($A12:D12)-SUM(F$3:$I$3))+RAND()*(MIN(E$3,$B$1-SUM($A12:D12)-SUM(F$2:$I$2))-MAX(E$2,$B$1-SUM($A12:D12)-SUM(F$3:$I$3))) -> 46.30244597 | F12: =MAX(F$2,$B$1-SUM($A12:E12)-SUM(G$3:$I$3))+RAND()*(MIN(F$3,$B$1-SUM($A12:E12)-SUM(G$2:$I$2))-MAX(F$2,$B$1-SUM($A12:E12)-SUM(G$3:$I$3))) -> 17.68727946 | G12: =MAX(G$2,$B$1-SUM($A12:F12)-SUM(H$3:$I$3))+RAND()*(MIN(G$3,$B$1-SUM($A12:F12)-SUM(H$2:$I$2))-MAX(G$2,$B$1-SUM($A12:F12)-SUM(H$3:$I$3))) -> 9.809529548 | H12: =MAX(H$2,$B$1-SUM($A12:G12)-SUM(I$3:$I$3))+RAND()*(MIN(H$3,$B$1-SUM($A12:G12)-SUM(I$2:$I$2))-MAX(H$2,$B$1-SUM($A12:G12)-SUM(I$3:$I$3))) -> 4.138248644 | J12: 100
B13: =MAX(B$2,$B$1-SUM($A13:A13)-SUM(C$3:$I$3))+RAND()*(MIN(B$3,$B$1-SUM($A13:A13)-SUM(C$2:$I$2))-MAX(B$2,$B$1-SUM($A13:A13)-SUM(C$3:$I$3))) -> 0.4049762075 | C13: =MAX(C$2,$B$1-SUM($A13:B13)-SUM(D$3:$I$3))+RAND()*(MIN(C$3,$B$1-SUM($A13:B13)-SUM(D$2:$I$2))-MAX(C$2,$B$1-SUM($A13:B13)-SUM(D$3:$I$3))) -> 3.46760019 | D13: =MAX(D$2,$B$1-SUM($A13:C13)-SUM(E$3:$I$3))+RAND()*(MIN(D$3,$B$1-SUM($A13:C13)-SUM(E$2:$I$2))-MAX(D$2,$B$1-SUM($A13:C13)-SUM(E$3:$I$3))) -> 15.46331031 | E13: =MAX(E$2,$B$1-SUM($A13:D13)-SUM(F$3:$I$3))+RAND()*(MIN(E$3,$B$1-SUM($A13:D13)-SUM(F$2:$I$2))-MAX(E$2,$B$1-SUM($A13:D13)-SUM(F$3:$I$3))) -> 46.56640315 | F13: =MAX(F$2,$B$1-SUM($A13:E13)-SUM(G$3:$I$3))+RAND()*(MIN(F$3,$B$1-SUM($A13:E13)-SUM(G$2:$I$2))-MAX(F$2,$B$1-SUM($A13:E13)-SUM(G$3:$I$3))) -> 15.77606975 | G13: =MAX(G$2,$B$1-SUM($A13:F13)-SUM(H$3:$I$3))+RAND()*(MIN(G$3,$B$1-SUM($A13:F13)-SUM(H$2:$I$2))-MAX(G$2,$B$1-SUM($A13:F13)-SUM(H$3:$I$3))) -> 13.36322228 | H13: =MAX(H$2,$B$1-SUM($A13:G13)-SUM(I$3:$I$3))+RAND()*(MIN(H$3,$B$1-SUM($A13:G13)-SUM(I$2:$I$2))-MAX(H$2,$B$1-SUM($A13:G13)-SUM(I$3:$I$3))) -> 4.958418121 | J13: 100
B14: =MAX(B$2,$B$1-SUM($A14:A14)-SUM(C$3:$I$3))+RAND()*(MIN(B$3,$B$1-SUM($A14:A14)-SUM(C$2:$I$2))-MAX(B$2,$B$1-SUM($A14:A14)-SUM(C$3:$I$3))) -> 0.3731541644 | C14: =MAX(C$2,$B$1-SUM($A14:B14)-SUM(D$3:$I$3))+RAND()*(MIN(C$3,$B$1-SUM($A14:B14)-SUM(D$2:$I$2))-MAX(C$2,$B$1-SUM($A14:B14)-SUM(D$3:$I$3))) -> 4.012182119 | D14: =MAX(D$2,$B$1-SUM($A14:C14)-SUM(E$3:$I$3))+RAND()*(MIN(D$3,$B$1-SUM($A14:C14)-SUM(E$2:$I$2))-MAX(D$2,$B$1-SUM($A14:C14)-SUM(E$3:$I$3))) -> 15.566477 | E14: =MAX(E$2,$B$1-SUM($A14:D14)-SUM(F$3:$I$3))+RAND()*(MIN(E$3,$B$1-SUM($A14:D14)-SUM(F$2:$I$2))-MAX(E$2,$B$1-SUM($A14:D14)-SUM(F$3:$I$3))) -> 47.97583538 | F14: =MAX(F$2,$B$1-SUM($A14:E14)-SUM(G$3:$I$3))+RAND()*(MIN(F$3,$B$1-SUM($A14:E14)-SUM(G$2:$I$2))-MAX(F$2,$B$1-SUM($A14:E14)-SUM(G$3:$I$3))) -> 17.22237535 | G14: =MAX(G$2,$B$1-SUM($A14:F14)-SUM(H$3:$I$3))+RAND()*(MIN(G$3,$B$1-SUM($A14:F14)-SUM(H$2:$I$2))-MAX(G$2,$B$1-SUM($A14:F14)-SUM(H$3:$I$3))) -> 10.21047819 | H14: =MAX(H$2,$B$1-SUM($A14:G14)-SUM(I$3:$I$3))+RAND()*(MIN(H$3,$B$1-SUM($A14:G14)-SUM(I$2:$I$2))-MAX(H$2,$B$1-SUM($A14:G14)-SUM(I$3:$I$3))) -> 4.639497798 | J14: 100
